Cogmind - Beta 9.6 @@@ ROGUE MODE // 2020.07.12 @ 00:49:41 Player: GGOBC-006 Result: Destroyed by G-34 Mercenary with Small Laser Performance ------------- Evolutions (1) 500 Regions Visited (2) 400 Robots Destroyed (29) 145 Value Destroyed (543) 543 Prototype IDs (2) 40 Alien Tech Used (0) 0 Bonus (0) 0 TOTAL SCORE: 1628 Bonus ------- None Cogmind --------- Core Integrity 0/400 Matter 300/300 Energy 100/100 System Corruption 0% Temperature Cool (6) Movement Core (50) Location -9/Materials Parts ------- > --- POWER (1) -------- (None) > --- PROPULSION (2) --- (None) > --- UTILITY (4) ------ (None) > --- WEAPON (2) ------- Katana > --- INVENTORY (4) ---- Light Ion Engine Assault Rifle Autogun Autogun Peak State ------------ > --- POWER ------------ Light Ion Engine > --- PROPULSION ------- Compact Wheel Compact Wheel > --- UTILITY ---------- Targeting Computer Hardlight Generator Tractor Beam > --- WEAPON ----------- Autogun Autogun > --- INVENTORY -------- Light Ion Engine Wheel Compact Wheel Assault Rifle [Rating: 12] Favorites ----------- Power Light Ion Engine Engine Light Ion Engine Propulsion Compact Wheel Wheel Compact Wheel Utility Targeting Computer Device Tractor Beam Processor Targeting Computer Weapon Autogun Energy Gun Small Laser Energy Cannon Advanced Beam Cannon Ballistic Gun Autogun Launcher Mini Grenade Launcher Slashing Weapon Katana Build | -11 -10 -9 ------- Run | Scr Mat Mat Slots Evolved 2 | . . 2 Power . | . . . Propulsion . | . . . Utility 2 | . . 2 Weapon . | . . . Parts Attached 30 | 12 8 10 Power 2 | 1 1 . Engine 2 | 1 1 . Core . | . . . Reactor . | . . . Propulsion 10 | 5 3 2 Treads . | . . . Leg . | . . . Wheel 10 | 5 3 2 Hover . | . . . Flight . | . . . Utility 7 | 3 3 1 Device 4 | 1 2 1 Storage . | . . . Processor 3 | 2 1 . Hackware . | . . . Protection . | . . . Artifact . | . . . Weapon 11 | 3 1 7 Energy Gun 2 | 1 1 . Energy Cannon 1 | . . 1 Ballistic Gun 5 | 2 . 3 Ballistic Cannon . | . . . Launcher 1 | . . 1 Special Weapon . | . . . Impact Weapon . | . . . Slashing Weapon 2 | . . 2 Piercing Weapon . | . . . Special Melee Weapon . | . . . Unidentified Prototypes 2 | . . 2 Parts Lost 7 | . 1 6 Power 1 | . . 1 Propulsion 3 | . 1 2 Utility 2 | . . 2 Weapon 1 | . . 1 Highest Loss Streak 6 | . 1 6 Average Slot Usage (%) 72 | . 87 65 Engine 10 | . 14 8 Wheel 20 | . 22 18 Device 8 | . 7 9 Processor 10 | . 14 9 Energy Gun 4 | . 14 . Ballistic Gun 13 | . 14 12 Slashing Weapon 2 | . . 4 Naked Turns 1 | . . 1 Heaviest Build 15 | 9 9 15 Greatest Support 32 | 26 32 32 Greatest Overweight (x) . | . . . Average Overweight (x) . | . . . Largest Inventory Capacity 4 | 4 4 4 Average Capacity 4 | 4 4 4 Most Carried 4 | 4 4 4 Average Carried 3 | 2 4 3 Final Capacity 4 | 4 4 4 Final Carried 4 | 4 4 4 Class Distribution -------------------- 60% | Scavenger-Mutant 39% | Mutant Dominant Class ---------------- Mutant | -10/Materials Scavenger-Mutant | -9/Materials Resources | -11 -10 -9 ----------- Run | Scr Mat Mat Matter Collected 722 | 394 114 214 Remotely 146 | . 50 96 Salvage Created 896 | 214 252 430 Parts 69 | 18 13 38 Haulers Intercepted 2 | . 1 1 Recyclers Shooed 2 | . 1 1 Parts Field Recycled . | . . . Retrieved Matter . | . . . Parts Self-Destructed . | . . . Prevented . | . . . Kills | -11 -10 -9 ------- Run | Scr Mat Mat Combat Hostiles Destroyed 14 | . 2 12 Melee 5 | . . 5 Guns 3 | . 2 1 AOE 6 | . . 6 Classes Destroyed 10 | 3 2 5 Worker 2 | 2 . . Builder 1 | . . 1 Tunneler 5 | 5 . . Hauler 2 | . 1 1 Recycler 3 | 1 2 . Watcher 2 | . . 2 Swarmer 4 | . . 4 Grunt 8 | . 2 6 Duelist 1 | . . 1 Sentry 1 | . . 1 Best Kill Streak 9 | 6 3 9 Combat Bots Only 7 | . 2 7 Max Kills in Single Turn 3 | 1 1 3 Gunslinging . | . . . Exploded 2 | . . 2 Melee 1 | . . 1 Uniques/NPCs Destroyed . | . . . Combat | -11 -10 -9 -------- Run | Scr Mat Mat Damage Taken 920 | . 224 696 Core 488 | . 77 411 Absorbed by Shields . | . . . Core Remaining (%) 84 | 100 69 . Volleys Fired 64 | 25 16 23 Largest 2 | 2 2 2 Hottest 70 | 60 60 70 Shots Fired 123 | 50 32 41 Gun 118 | 50 32 36 Cannon . | . . . Launcher 5 | . . 5 Special . | . . . Kinetic 65 | 25 16 24 Thermal 53 | 25 16 12 Explosive 5 | . . 5 Electromagnetic . | . . . Robot Hit Streak 12 | 5 12 5 Robot Miss Streak 3 | 3 1 2 Penetration Max . | . . . Secondary Targets 1 | . 1 . Max Gunslinging Chain 1 | . 1 . Shots Hit Robots 81 | 29 26 26 Core Hits 40 | 9 10 21 Critical Hits . | . . . Critical Kills . | . . . Critical Parts Destroyed . | . . . Melee Attacks 28 | . . 28 Impact . | . . . Slashing 28 | . . 28 Piercing . | . . . Sneak Attacks 1 | . . 1 Combat Hostiles . | . . . Follow-up Attacks . | . . . Damage Inflicted 1652 | 307 316 1029 Guns 732 | 307 316 109 Cannons . | . . . Explosions 344 | . . 344 Melee 576 | . . 576 Ramming . | . . . Kinetic 456 | 176 171 109 Thermal 276 | 131 145 . Explosive 344 | . . 344 Electromagnetic . | . . . Impact . | . . . Slashing 576 | . . 576 Piercing . | . . . Highest Corruption . | . . . Average Corruption . | . . . Corruption Purged . | . . . Overload Shots . | . . . Overflow Damage 51 | . . 51 Projectiles . | . . . Explosions . | . . . Melee 51 | . . 51 Knockbacks . | . . . Impact . | . . . Kinetic . | . . . Secondary . | . . . Self-Inflicted Damage 75 | . . 75 Shots 2 | . . 2 Rammed . | . . . Targets Rammed . | . . . Kicked . | . . . Crushed . | . . . Highest Temperature 90 | . 90 6 Average Temperature 49 | . 56 6 Received Heat Transfer 396 | . 126 270 Siege Activations . | . . . Robots Corrupted . | . . . Combat Hostiles . | . . . Parts Fried . | . . . Impact Corruptions . | . . . Robots Melted . | . . . Combat Hostiles . | . . . Parts Melted 1 | . 1 . Heat Transferred 625 | 300 325 . Parts Sabotaged . | . . . Parts Stolen . | . . . Parts Stripped . | . . . Power Chain Reactions . | . . . Missiles Intercepted . | . . . Alert | -11 -10 -9 ------- Run | Scr Mat Mat Peak Influence 372 | 40 118 372 Average Influence 86 | 19 72 108 Maximum Alert Level 1 | . . 1 Low Security (%) 88 | 100 100 80 Level 1 11 | . . 19 Level 2 . | . . . Level 3 . | . . . Level 4 . | . . . Level 5 . | . . . High Security . | . . . Max Security . | . . . Squads Dispatched 3 | . 1 2 Investigation 2 | . 1 1 Extermination . | . . . Reinforcement 1 | . . 1 Assault . | . . . Garrison . | . . . Intercept . | . . . Construction Impeded . | . . . Haulers Reinforced . | . . . Stealth | -11 -10 -9 --------- Run | Scr Mat Mat Distress Signals . | . . . Communications Jammed . | . . . Distress Signals . | . . . Times Spotted 31 | . 7 24 Peak Tracking Total 6 | . 2 6 Tactical Retreats 3 | . 2 1 Traps | -11 -10 -9 ------- Run | Scr Mat Mat Traps Triggered . | . . . Indirectly . | . . . Trap Hack Attempts . | . . . Triggered . | . . . Disarmed . | . . . Reprogrammed . | . . . Reused . | . . . Traps Extracted . | . . . Installed . | . . . Triggered . | . . . Machines | -11 -10 -9 ---------- Run | Scr Mat Mat Machines Disabled 3 | . . 3 Max in Single Turn 1 | . . 1 Machines Sabotaged . | . . . Garrisons Compromised . | . . . Overloaded Fab Kills . | . . . Fab Network Shutdowns . | . . . Hacking | -11 -10 -9 --------- Run | Scr Mat Mat Machines Accessed 5 | . 1 4 Terminals 4 | . . 4 Fabricators . | . . . Repair Stations . | . . . Recycling Units 1 | . 1 . Scanalyzers . | . . . Garrison Access . | . . . Total Hacks 19 | . 2 17 Successful 8 | . 2 6 Failed 11 | . . 11 Catastrophic 2 | . . 2 Database Lockouts . | . . . Manual 16 | . 1 15 Terminals 17 | . . 17 Fabricators . | . . . Repair Stations . | . . . Recycling Units 2 | . 2 . Scanalyzers . | . . . Garrison Access . | . . . Terminal Hacks 1 | . . 1 Recall Reinforcements 1 | . . 1 Fabricator Hacks . | . . . Repair Station Hacks . | . . . Recycling Unit Hacks 1 | . 1 . Retrieve Components 1 | . 1 . Scanalyzer . | . . . Garrison Access Hacks . | . . . Unauthorized Hacks 6 | . 1 5 Terminals 5 | . . 5 Track 4 | . . 4 Operators 1 | . . 1 Fabricators . | . . . Repair Stations . | . . . Recycling Units 1 | . 1 . Tunnel 1 | . 1 . Scanalyzers . | . . . Garrison Access . | . . . Data Cores Recovered . | . . . Used . | . . . Hacking Detections 3 | . . 3 Full Trace Events 1 | . . 1 Feedback Events . | . . . Feedback Blocked . | . . . Robot Schematics Acquired . | . . . Robots Built . | . . . Matter . | . . . Time . | . . . Total Robot Build Rating . | . . . Part Schematics Acquired . | . . . Parts Built . | . . . Matter . | . . . Time . | . . . Total Part Build Rating . | . . . Parts Repaired . | . . . Time . | . . . Parts Recycled . | . . . Recycled Matter . | . . . Retrieved Matter . | . . . Retrieved Components 4 | . 4 . Parts Scanalyzed . | . . . Part Schematics Acquired . | . . . Parts Damaged . | . . . Bothacking | -11 -10 -9 ------------ Run | Scr Mat Mat Used RIF Installer . | . . . Robots Hacked . | . . . Non-combat . | . . . Combat . | . . . Robot Hacks Applied . | . . . Relay Couplers Released . | . . . Robots Rewired . | . . . Allies Hacked . | . . . Hacks Repelled . | . . . Allies | -11 -10 -9 -------- Run | Scr Mat Mat Total Allies . | . . . Largest Group . | . . . Highest-Rated Group . | . . . Highest-Rated Ally . | . . . Total Orders . | . . . Ally Attacks . | . . . Total Damage . | . . . Kills . | . . . Allies Corrupted . | . . . Allies Melted . | . . . Intel | -11 -10 -9 ------- Run | Scr Mat Mat Robot Analysis Total . | . . . Derelict Logs Recovered . | . . . Drone Launches . | . . . Drone Recoveries . | . . . Exploration | -11 -10 -9 ------------- Run | Scr Mat Mat Turns Passed 1159 | 168 294 697 Spaces Moved 629 | 90 254 285 Core 88 | 2 . 86 Treads . | . . . Legs . | . . . Wheels 541 | 88 254 199 Hover . | . . . Flight . | . . . Fastest Speed 50 | 50 80 50 Average Speed 84 | 82 89 80 Slowest Speed 100 | 90 100 100 Overloaded Moves . | . . . Propulsion Burnouts . | . . . Robots Hopped . | . . . Cave-ins Triggered . | . . . Exploration Rate (%) 21 | 5 34 26 Regions Visited 2 Branch Regions . Pre-discovered Areas 1 | . 1 . Known Exits Taken . | . . . Unknown Exits Taken 2 | 1 1 . Scrap Searched . | . . . Spaces Dug . | . . . Terrain Destroyed 28 | . . 28 Melee . | . . . Projectile . | . . . AOE 28 | . . 28 Actions | -11 -10 -9 --------- Run | Scr Mat Mat Total 1090 | 128 289 673 Wait 322 | . 5 317 Move 627 | 89 253 285 Hop . | . . . Pick Up 1 | 1 . . Fast Attach 18 | 7 4 7 Attach . | . . . Detach 2 | . . 2 Swap 12 | 5 4 3 Drop 16 | 1 7 8 Fire 64 | 25 16 23 Melee 28 | . . 28 Ram . | . . . Kick . | . . . Crush . | . . . Escape Stasis . | . . . Rewire . | . . . Trap . | . . . Miscellaneous . | . . . Route ------- -11/Scrapyard -10/Materials -9/Materials History --------- Turn | Location | Event 13 | -11/Scrapyard | Discovered new exit (range 16) 169 | -11/Scrapyard | Entered Materials 303 | -10/Materials | Build established: Mutant 457 | -10/Materials | Discovered new exit (range 8) 463 | -10/Materials | Entered another Materials area 463 | -9/Materials | Evolved 2 slots: Utility x2 639 | -9/Materials | Build established: Scavenger-Mutant 1056 | -9/Materials | Destroyed 7 combat bots 1061 | -9/Materials | Core integrity fell below 50% 1102 | -9/Materials | Lost 6 parts (1p2n2u1w) 1150 | -9/Materials | Core integrity fell below 20% 1160 | -9/Materials | Destroyed by G-34 Mercenary with Small Laser Last Messages --------------- Identified Imp. Assault Rifle. K-01 Serf collects debris. U-05 Engineer lays Concrete. Dropped Imp. Assault Rifle. U-05 Engineer lays Concrete. K-01 Serf collects debris. U-05 Engineer lays Concrete. W-16 Scout destroyed. U-05 Engineer lays Concrete. K-01 Serf collects debris. Acquired 23 matter. U-05 Engineer lays Concrete. K-01 Serf collects debris. W-16 Scout destroyed. K-01 Serf collects debris. Acquired 7 matter. K-01 Serf collects debris. R-06 Scavenger collects Visual Processing Unit. R-06 Scavenger collects Hover Unit. K-01 Serf collects debris. Map ----- +----------------------------------------------------+ | ???????????#### ############+#???????????????????? | | ???????????# T #???????????????????? | | ???????????# !#???????????????????? | | ???????????# #???????????????????? | | ???????????##### """ """ #???????????????????? | | ???????????#!! """ """ ????????????????????? | | ???????????#!! """ """ ????????????????????? | | ???????????#!! """ """ ##??????????????????? | | ???????????#! u kt????????????????? | | ???????????#!! k#???????????????????? | | ???????????#!! #???????????????????? | | ?????########### ###+##### #???????????????????? | | ?????# "" # # ## #???????????????????? | | ?????# ""S # # "## #???????????????????? | | ?????# "" + # T## #???????????????????? | | ?????# # # "## #???????????????????? | | ?????# # # ## #???????????????????? | | ?????# [ # # / #???????????????????? | | ?????# [[ # ####+#### #???????????????????? | | ?????# [[ # #??# #??# #???????????????????? | | ?????########### #??# #??# #???????????????????? | | ?????# + #### #### #???????????????????? | | ?????# ! # #???????????????????? | | ?????# ==+ #???????????????????? | | ?????# =# g g####???????????????????? | | ?????################## @#??????????????????????? | | ?????##########???????# #??????????????????????? | | ?????# #???????# #??????????????????????? | | ?????# """ #???????#a #??????????????????????? | | ?????# """ #???????# #??????????????????????? | | ?????# """ ######### #???######?????????????? | | ?????#! + k#??##!!!!##????????????? | | ?????# "" # #??#! !#????????????? | | ?????# """ # *#??#! !#????????????? | | ?????# S" # %#### #????????????? | | ?????# # r ! +????????????? | | ?????######+### #?????????????? | | ??????????# #?# " " " = #???+#????????? | | ??????????# #?# T """ """! * #??? #????????? | | ??????????# #?# " """ """ = #### #????????? | | ?????????## ### """ """ #????????? | | ?????????# "" "" #????????? | | ?????????# """ """ #????????? | | ?????????###### "" "" #????????? | | ??????????????# ] "" #????????? | | ???????????#### ] " ########## | | ???????????# o = = r [ | | ???????????# * %=]u[ %=%######### | | ???????????###+####### # *!#= ##+#######??? | | ???????????? ?#####+# ### ]] % #??? | +----------------------------------------------------+ Best States ------------- Heat Dissipation 28 Energy Generation 10 Energy Capacity 250 Matter Stores 300 Matter Capacity 300 Sight Range 16 Terrain Scan Range 16 Terrain Scan Density 60 Additional Mass Support 6 Evasion (%) 50 Targeting Accuracy 5 Item Schematics ----------------- None Robot Schematics ------------------ None Fabricated ------------ Nothing Alien Tech Used ----------------- None Achievements -------------- None Challenges ------------ None Game ------ Seed DataMagneticJammer Manual? 0 Play Time 00:10:32 Cumulative 38.4 hours Start 2020.07.12 @ 00:40:28 End 2020.07.12 @ 00:49:41 Sessions 1 Manual Loads 0 Difficulty Rogue Special Mode None Game No. 33 Rogue 33 Adventurer 0 Explorer 0 Win Type - Total 0 Types 0/0/0/0/0/0/0 Lore% 43 Gallery% 38 Achievement% 33 Wizard Run 0 Options --------- ASCII 0 Keyboard 0 Movement Numpad Keybinds 0 Fullscreen 2 Font 18/TerminusBold Map View 76x50 Tactical HUD 0 Map Filters NONE Filters NONE Steam 1 RUN: 777ea3bd-18b3-4251-a3e3-8fe6f954fc40